bitfinex-derivatives/quotes_BNBF0:USTF0_20250603
["timestamp","ask_amount","ask_price","bid_price","bid_amount"]
[1748972600099,1.50129629,665.77,665.71,0.30043111]
[1748972601500,1.50129629,665.78,665.71,0.30043111]
[1748972603002,3.73766948,666.64,665.71,0.30043111]
[1748972603003,1.50129629,665.82,665.71,0.30043111]
[1748972603198,7.47533897,667.51,665.71,0.30043111]
[1748972603199,1.50129629,665.8,665.71,0.30043111]
[1748972603603,1.50129629,665.81,665.71,0.30043111]
[1748972605709,3.73766948,666.77,665.71,0.30043111]
[1748972605710,1.50129629,665.82,665.71,0.30043111]
[1748972607612,1.50129629,665.83,665.71,0.30043111]
[1748972608812,7.47533897,667.75,665.71,0.30043111]
[1748972608813,1.50129629,665.8,665.71,0.30043111]
[1748972609212,1.50129629,665.79,665.71,0.30043111]
[1748972609412,1.50129629,665.8,665.71,0.30043111]
[1748972610111,1.50129629,665.79,665.71,0.30043111]
[1748972612914,5.23273727,666.99,665.71,0.30043111]
[1748972612915,1.50129629,665.73,665.71,0.30043111]
[1748972614217,1.50129629,665.72,665.71,0.30043111]
[1748972615013,1.50129629,665.73,665.71,0.30043111]
[1748972615616,1.50129629,665.72,665.71,0.30043111]
[1748972618523,2.24926878,665.83,665.71,0.30043111]
[1748972618917,2.24926878,665.82,665.71,0.30043111]
[1748972619321,2.24926878,665.81,665.71,0.30043111]
[1748972619726,2.24926878,665.8,665.71,0.30043111]
[1748972620121,2.24926878,665.83,665.71,0.30043111]
[1748972622627,2.24926878,665.82,665.71,0.30043111]
[1748972622828,3.73766948,666.35,665.71,0.30043111]
[1748972622829,2.24926878,665.81,665.71,0.30043111]
[1748972623028,2.24926878,665.82,665.71,0.30043111]
[1748972624324,3.73766948,666.33,665.71,0.30043111]
[1748972624325,2.24926878,665.83,665.71,0.30043111]
[1748972624529,1.49565018,665.74,665.71,0.30043111]
[1748972624727,1.49565018,665.76,665.71,0.30043111]
[1748972625420,1.49565018,665.77,665.71,0.30043111]
[1748972627323,1.49565018,665.78,665.71,0.30043111]
[1748972627527,1.49565018,665.83,665.71,0.30043111]
[1748972627924,1.49565018,665.82,665.71,0.30043111]
[1748972628130,1.49565018,665.83,665.71,0.30043111]
[1748972631128,1.49565018,665.82,665.71,0.30043111]
[1748972631328,1.49565018,665.83,665.71,0.30043111]
[1748972631533,1.49565018,665.82,665.71,0.30043111]
[1748972631828,1.49565018,665.83,665.71,0.30043111]
[1748972632032,1.49565018,665.82,665.71,0.30043111]
[1748972633230,1.49565018,665.83,665.71,0.30043111]
[1748972634434,1.49565018,665.8,665.73,0.47735222]
[1748972634735,1.49565018,665.8,665.71,0.30043111]
[1748972634736,1.49565018,665.81,665.71,0.77778333]
[1748972635234,1.49565018,665.8,665.71,0.77778333]
[1748972635532,1.49565018,665.79,665.71,0.30043111]
[1748972635935,1.49565018,665.78,665.71,0.77778333]
[1748972636430,1.49565018,665.78,665.71,0.30043111]
[1748972637237,1.49565018,665.76,665.74,0.47735222]
[1748972637431,1.49565018,665.76,665.73,0.47735222]
[1748972637631,1.49565018,665.77,665.71,0.77778333]
[1748972638437,1.49565018,665.76,665.71,0.77778333]
[1748972639342,1.49565018,665.76,665.72,0.47735222]
[1748972639840,1.49565018,665.75,665.72,0.47735222]
[1748972640235,1.49565018,665.76,665.72,0.47735222]
[1748972640742,1.49565018,665.76,665.71,0.77778333]
[1748972641138,5.23273727,666.6,665.71,0.30043111]
[1748972641139,1.49565018,665.78,665.71,0.30043111]
[1748972642340,1.49565018,665.8,665.71,0.30043111]
[1748972642542,3.73766948,666.43,665.71,0.30043111]
[1748972642543,1.49565018,665.79,665.71,0.30043111]
[1748972642936,1.49565018,665.81,665.71,0.30043111]
[1748972643141,1.49565018,665.8,665.71,0.30043111]
[1748972644241,1.49565018,665.85,665.71,0.30043111]
[1748972644446,1.49565018,665.84,665.71,0.30043111]
[1748972644639,1.49565018,665.85,665.71,0.30043111]
[1748972646941,1.49565018,665.84,665.71,0.30043111]
[1748972648941,1.49565018,665.85,665.71,0.30043111]
[1748972649341,1.49565018,665.84,665.71,0.30043111]
[1748972649646,1.49565018,665.85,665.71,0.30043111]
[1748972650146,1.49565018,665.84,665.71,0.30043111]
[1748972650351,1.49565018,665.83,665.71,0.30043111]
[1748972651041,1.49565018,665.82,665.71,0.30043111]
[1748972652143,1.49565018,665.83,665.71,0.30043111]
[1748972652343,1.49565018,665.84,665.71,0.30043111]
[1748972652750,3.73766948,666.56,665.71,0.30043111]
[1748972652751,1.49565018,665.83,665.71,0.30043111]
[1748972653147,1.49565018,665.85,665.71,0.30043111]
[1748972653350,1.49565018,665.86,665.71,0.30043111]
[1748972653552,1.49565018,665.85,665.71,0.30043111]
[1748972653944,1.49565018,665.86,665.71,0.30043111]
[1748972654145,1.49565018,665.83,665.75,0.47735222]
[1748972654356,1.49565018,665.83,665.77,0.47735222]
[1748972654550,1.49565018,665.83,665.71,0.30043111]
[1748972654551,1.49565018,665.82,665.81,0.47735222]
[1748972654946,1.49565018,665.82,665.8,0.47735222]
[1748972655147,2.24926878,665.92,665.79,0.47735222]
[1748972655345,1.49729301,665.8,665.79,0.47735222]
[1748972655548,1.49729301,665.8,665.71,0.30043111]
[1748972655952,2.24926878,665.92,665.71,0.30043111]
[1748972655953,1.49729301,665.81,665.71,0.30043111]
[1748972656148,1.49729301,665.81,665.78,0.47653789]
[1748972656555,1.49729301,665.81,665.71,0.30043111]
[1748972656556,1.49729301,665.81,665.79,0.47653789]
[1748972656854,1.49729301,665.82,665.76,0.47653789]
[1748972657855,1.49729301,665.82,665.78,0.47653789]
[1748972658154,1.49729301,665.83,665.78,0.47653789]
[1748972658654,5.23273727,666.71,665.71,0.30043111]
[1748972658655,1.49729301,665.81,665.71,0.30043111]
[1748972659052,1.49729301,665.83,665.79,0.47682445]
[1748972659248,1.49729301,665.85,665.72,0.47682445]
[1748972659453,1.49729301,665.85,665.73,0.47682445]
[1748972660453,1.49729301,665.85,665.74,0.47682445]
[1748972660650,1.49729301,665.87,665.76,0.47682445]
[1748972660957,1.49729301,665.85,665.75,0.47682445]
[1748972661156,1.49729301,665.86,665.75,0.47682445]
[1748972661555,1.49729301,665.86,665.76,0.47682445]
[1748972661757,5.23273727,666.81,665.71,0.30043111]
[1748972661758,1.49729301,666.07,665.71,0.30043111]
[1748972662151,1.49729301,666.08,665.71,0.30043111]
[1748972662554,1.49729301,666.09,665.71,0.30043111]
[1748972663457,1.49729301,666.1,665.71,0.30043111]
[1748972664053,1.49729301,666.09,665.71,0.30043111]
[1748972664356,1.49729301,666.1,665.71,0.30043111]
[1748972667253,1.49729301,666.11,665.71,0.30043111]
[1748972668158,1.49729301,666.09,665.71,0.30043111]
[1748972668361,1.49729301,666.03,665.71,0.30043111]
[1748972668554,1.49729301,666.01,665.71,0.30043111]
[1748972668758,1.49729301,666.0,665.71,0.30043111]
[1748972668957,1.49729301,666.01,665.71,0.30043111]
[1748972669261,1.49729301,666.0,665.71,0.30043111]
[1748972671165,1.49729301,665.99,665.71,0.30043111]
[1748972671564,1.49729301,665.92,665.71,0.30043111]
[1748972674968,1.49729301,665.91,665.71,0.30043111]
[1748972676274,1.49729301,665.87,665.77,0.47682445]
[1748972677375,1.49729301,665.87,665.78,0.47682445]
[1748972678076,3.73766948,666.51,665.8,0.47682445]
[1748972678077,1.49729301,665.86,665.8,0.47682445]
[1748972678278,1.49729301,665.84,665.71,0.30043111]
[1748972679377,1.49729301,665.83,665.71,0.30043111]
[1748972681076,1.49729301,665.81,665.71,0.30043111]
[1748972681475,1.49729301,665.8,665.71,0.30043111]
[1748972684181,1.49729301,665.79,665.71,0.30043111]
[1748972685583,1.49729301,665.78,665.71,0.30043111]
[1748972694192,1.49729301,665.81,665.71,0.30043111]
[1748972696592,2.24926878,665.93,665.71,0.30043111]
[1748972696593,1.49729301,665.8,665.71,0.30043111]
[1748972696796,1.49729301,665.81,665.71,0.30043111]
[1748972697391,1.49729301,665.8,665.71,0.30043111]
[1748972699198,1.49729301,665.8,665.71,0.77754636]
[1748972699394,1.49729301,665.86,665.72,0.47711525]
[1748972699699,1.49729301,665.87,665.71,0.30043111]
[1748972700299,1.49729301,665.87,665.71,0.77754636]
[1748972701002,1.49729301,665.87,665.71,0.30043111]
[1748972701294,1.49729301,665.87,665.71,0.77754636]
[1748972702295,1.49729301,665.87,665.73,0.47711525]
[1748972702993,1.49729301,665.87,665.72,0.47711525]
[1748972703196,1.49729301,665.87,665.75,0.47711525]
[1748972704096,1.49729301,665.87,665.71,0.30043111]
[1748972704097,1.49729301,665.86,665.78,0.47711525]
[1748972704694,1.49729301,665.85,665.78,0.47711525]
[1748972708401,1.49729301,665.9,665.71,0.30043111]
[1748972709200,3.73766948,666.75,665.71,0.30043111]
[1748972709201,1.49729301,665.88,665.71,0.30043111]
[1748972712299,1.49729301,665.87,665.71,0.30043111]
[1748972713104,1.49729301,665.88,665.71,0.30043111]
[1748972718309,1.49729301,665.8,665.71,0.30043111]
[1748972719305,1.49729301,665.83,665.71,0.30043111]
[1748972719610,1.49729301,665.83,665.81,0.477521]
[1748972719811,1.49729301,665.83,665.8,0.477521]
[1748972720410,1.49729301,665.83,665.71,0.30043111]
[1748972720411,1.49729301,665.83,665.81,0.477521]
[1748972720810,2.24926878,665.96,665.82,0.477521]
[1748972721406,1.49999411,665.83,665.82,0.477521]
[1748972722212,2.24926878,665.96,665.82,0.477521]
[1748972723414,2.24926878,665.95,665.84,0.477521]
[1748972724209,2.24926878,665.94,665.84,0.477521]
[1748972726214,2.24926878,665.93,665.84,0.477521]
[1748972726415,2.24926878,665.94,665.85,0.477521]
[1748972726613,2.24926878,665.92,665.88,0.477521]
[1748972726812,2.24926878,665.92,665.87,0.477521]
[1748972727416,2.24926878,665.91,665.87,0.477521]
[1748972728312,2.24926878,665.9,665.87,0.477521]
[1748972729112,2.24926878,665.9,665.71,0.30043111]
[1748972729311,1.50143235,665.72,665.71,0.30043111]
[1748972729515,2.25214853,665.83,665.71,0.30043111]
[1748972729815,2.25214853,665.82,665.72,0.47625131]
[1748972731619,2.25214853,665.83,665.71,0.77668242]
[1748972731820,1.50142876,665.72,665.71,0.77668242]
[1748972732613,2.25214853,665.83,665.71,0.30043111]
[1748972732814,1.50142897,665.72,665.71,0.30043111]
[1748972736826,1.50142897,665.77,665.71,0.30043111]
[1748972737628,1.50142897,665.79,665.71,0.30043111]
[1748972738123,1.50142897,665.78,665.71,0.30043111]
[1748972738329,5.23273727,666.75,665.77,0.47759808]
[1748972738330,1.50142897,665.79,665.77,0.47759808]
[1748972739728,1.50142897,665.79,665.76,0.47759808]
[1748972742930,1.50142897,665.79,665.75,0.47759808]
[1748972743729,1.50142897,665.8,665.75,0.47759808]
[1748972744327,1.50142897,665.8,665.74,0.47759808]
[1748972746832,1.50142897,665.78,665.71,0.30043111]
[1748972747230,1.50142897,665.79,665.77,0.47749442]
[1748972747427,1.50142897,665.79,665.71,0.30043111]
[1748972747428,1.50142897,665.78,665.71,0.30043111]
[1748972748035,1.50142897,665.77,665.71,0.30043111]
[1748972748234,1.50142897,665.75,665.71,0.30043111]
[1748972749030,1.50142897,665.74,665.71,0.30043111]
[1748972749231,1.50142897,665.8,665.71,0.30043111]
[1748972749435,1.50142897,665.8,665.73,0.47749535]
[1748972749629,1.50142897,665.77,665.71,0.30043111]
[1748972749934,1.50142897,665.74,665.71,0.30043111]
[1748972750630,1.50142897,665.75,665.71,0.30043111]
[1748972750831,1.50142897,665.74,665.71,0.30043111]
[1748972751231,1.50142897,665.72,665.71,0.30043111]
[1748972751433,2.25214853,665.87,665.71,0.30043111]
[1748972751434,2.25214853,665.85,665.71,0.30043111]
[1748972751629,2.25214853,665.87,665.71,0.30043111]
[1748972752037,7.47533897,667.32,665.71,0.30043111]
[1748972752038,2.25214853,665.78,665.71,0.30043111]
[1748972752236,2.25214853,665.77,665.71,0.30043111]
[1748972752530,3.73766948,666.32,665.71,0.30043111]
[1748972752531,2.25214853,665.79,665.71,0.30043111]
[1748972753536,2.25214853,665.8,665.71,0.30043111]
[1748972755738,3.73766948,666.34,665.71,0.30043111]
[1748972755739,2.25214853,665.81,665.71,0.30043111]
[1748972757339,2.25214853,665.83,665.71,0.30043111]
[1748972759638,2.25214853,665.82,665.71,0.30043111]
[1748972760536,2.25214853,665.81,665.71,0.30043111]
[1748972760839,5.23273727,666.61,665.71,0.30043111]
[1748972760840,2.25214853,665.78,665.71,0.30043111]
[1748972761240,2.25214853,665.75,665.71,0.30043111]
[1748972761534,2.25214853,665.73,665.48,0.47749535]
[1748972761739,2.25214853,665.73,665.0,0.26149979]
[1748972761740,1.49777214,665.61,665.46,0.47749535]
[1748972761939,1.49777214,665.61,665.47,0.47749535]
[1748972762140,1.49777214,665.6,665.47,0.47749535]
[1748972762340,1.49777214,665.6,665.0,0.26149979]
[1748972762341,1.49777214,665.61,665.45,0.47749535]
[1748972762640,1.49777214,665.61,665.43,0.47749535]
[1748972763439,1.49777214,665.59,665.36,0.47749535]
[1748972763633,3.73766948,666.25,665.31,0.47749535]
[1748972763634,1.49777214,665.57,665.31,0.47749535]
[1748972763837,1.49777214,665.57,664.88,0.26155974]
[1748972763838,1.49777214,665.57,665.27,0.47749535]
[1748972764041,1.49777214,665.57,665.28,0.3006253]
[1748972764241,1.49777214,665.55,665.3,0.47749535]
[1748972764539,2.25214853,665.68,665.28,0.3006253]
[1748972764540,1.49777214,665.54,665.28,0.3006253]
[1748972765239,1.49777214,665.52,665.28,0.3006253]
[1748972765639,1.49777214,665.56,665.28,0.3006253]
[1748972765843,1.49777214,665.57,665.28,0.3006253]
[1748972766444,1.49777214,665.58,665.28,0.3006253]
[1748972767342,1.49777214,665.59,665.28,0.3006253]
[1748972767543,1.49777214,665.6,665.28,0.3006253]
[1748972768746,1.49777214,665.61,665.28,0.3006253]
[1748972769741,1.49777214,665.62,665.28,0.3006253]
[1748972770650,1.49777214,665.63,665.28,0.3006253]
[1748972771551,1.49777214,665.64,665.28,0.3006253]
[1748972772654,1.49777214,665.65,665.28,0.3006253]
[1748972773352,1.49777214,665.64,665.28,0.3006253]
[1748972773748,5.23273727,666.67,665.28,0.3006253]
[1748972773749,1.49777214,665.66,665.28,0.3006253]
[1748972773948,1.49777214,665.65,665.28,0.3006253]
[1748972774150,1.49777214,665.66,665.28,0.3006253]
[1748972774545,1.49777214,665.67,665.28,0.3006253]
[1748972774750,1.49777214,665.66,665.28,0.3006253]
[1748972775351,1.49777214,665.63,665.33,0.47749535]
[1748972775553,1.49777214,665.63,665.34,0.47749535]
[1748972775751,1.49777214,665.63,665.28,0.3006253]
[1748972775752,1.49777214,665.64,665.35,0.47749535]
[1748972775955,1.49777214,665.63,665.34,0.47749535]
[1748972776547,3.73766948,666.24,665.35,0.47749535]
[1748972776548,1.49777214,665.64,665.35,0.47749535]
[1748972776753,1.49777214,665.62,665.34,0.47749535]
[1748972776954,1.49777214,665.64,665.36,0.47749535]
[1748972777149,1.49777214,665.63,665.38,0.47749535]
[1748972777456,1.49777214,665.61,665.38,0.47749535]
[1748972778650,1.49777214,665.62,665.4,0.47749535]
[1748972779254,1.49777214,665.65,665.31,0.47749535]
[1748972779558,1.49777214,665.65,665.32,0.47749535]
[1748972780154,1.49777214,665.65,665.31,0.47749535]
[1748972780552,1.49777214,665.66,665.33,0.47749535]
[1748972781352,1.49777214,665.65,665.35,0.47749535]
[1748972781552,1.49777214,665.65,665.28,0.3006253]
[1748972781553,1.49777214,665.65,665.4,0.47749535]
[1748972782057,1.49777214,665.64,665.41,0.47749535]
[1748972782257,1.49777214,665.64,665.39,0.47749535]
[1748972782659,1.49777214,665.64,665.42,0.47749535]
[1748972783057,1.49777214,665.65,665.42,0.47749535]
[1748972783257,3.73766948,666.28,665.44,0.47749535]
[1748972783258,1.49777214,665.67,665.44,0.47749535]
[1748972783458,1.49777214,665.66,665.44,0.47749535]
[1748972783757,1.49777214,665.67,665.46,0.47749535]
[1748972784454,1.49777214,665.67,665.47,0.47749535]
[1748972784653,1.49777214,665.67,665.5,0.47749535]
[1748972785559,1.49777214,665.67,665.51,0.47749535]
[1748972785758,1.49777214,665.67,665.52,0.47749535]
[1748972785958,1.49777214,665.67,665.51,0.47749535]
[1748972786557,1.49777214,665.67,665.52,0.47749535]
[1748972786861,1.49777214,665.66,665.52,0.47749535]
[1748972787056,1.47326418,665.66,665.52,0.47749535]
[1748972787555,1.47326418,665.66,665.53,0.47749535]
[1748972787754,1.47326418,665.66,665.52,0.47749535]
[1748972788060,2.25214853,665.79,665.53,0.47749535]
[1748972788261,2.25214853,665.79,665.52,0.47749535]
[1748972788559,5.23273727,666.55,665.52,0.47749535]
[1748972788560,2.25214853,665.78,665.52,0.47749535]
[1748972788761,2.25214853,665.79,665.53,0.47749535]
[1748972789262,2.25214853,665.73,665.67,0.47749535]
[1748972790061,2.25214853,665.71,665.67,0.47749535]
[1748972790262,2.25214853,665.7,665.65,0.47749535]
[1748972790659,2.25214853,665.7,665.66,0.47749535]
[1748972791564,2.25214853,665.7,665.67,0.47749535]
[1748972792465,2.25214853,665.7,665.69,0.47749535]
[1748972792664,2.25214853,665.7,665.68,0.47749535]
[1748972793461,2.25214853,665.7,665.69,0.47749535]
[1748972793665,3.73766948,666.12,665.39,0.47625131]
[1748972793965,2.2380103,665.69,665.39,0.47625131]
[1748972794665,2.2380103,665.69,665.41,0.47625131]
[1748972795661,2.2380103,665.68,665.4,0.47625131]
[1748972795860,2.2380103,665.69,665.4,0.47625131]
[1748972796066,2.2380103,665.69,665.38,0.47625131]
[1748972796368,2.2380103,665.7,665.36,0.47625131]
[1748972796561,2.2380103,665.69,665.68,0.47807718]
[1748972796777,2.2380103,665.69,665.37,0.47625131]
[1748972796961,2.2380103,665.69,665.28,0.3006253]
[1748972796962,2.2380103,665.69,665.36,0.47625131]
[1748972797566,2.2380103,665.69,665.37,0.47625131]
[1748972798371,2.2380103,665.68,665.4,0.47625131]
[1748972798572,2.2380103,665.68,665.39,0.47625131]
[1748972799270,2.2380103,665.73,665.6,0.47851114]
[1748972799669,2.2380103,665.72,665.59,0.47851114]
[1748972799870,3.73766948,666.24,665.5,0.47851114]
[1748972799871,2.2380103,665.77,665.5,0.47851114]
[1748972800467,2.2380103,665.76,665.49,0.47851114]
[1748972801665,2.2380103,665.75,665.47,0.47851114]
[1748972802470,2.2380103,665.75,665.45,0.47851114]
[1748972802673,2.2380103,665.77,665.4,0.47851114]
[1748972803068,2.2380103,665.77,665.41,0.47851114]
[1748972803268,2.2380103,665.77,665.4,0.47851114]
[1748972803667,2.2380103,665.76,665.38,0.47851114]
[1748972804674,2.2380103,665.75,665.38,0.47851114]
[1748972805580,2.2380103,665.74,665.38,0.47851114]
[1748972805879,2.2380103,665.74,665.39,0.47851114]
[1748972806580,2.2380103,665.73,665.39,0.47851114]
[1748972806972,2.2380103,665.72,665.39,0.47851114]
[1748972807675,2.2380103,665.71,665.39,0.47851114]
[1748972807877,2.2380103,665.76,665.29,0.47851114]
[1748972808473,2.2380103,665.75,665.29,0.47851114]
[1748972809176,2.2380103,665.74,665.32,0.47851114]
[1748972809581,2.2380103,665.72,665.32,0.47851114]
[1748972809781,2.2380103,665.7,665.36,0.47851114]
[1748972810776,2.2380103,665.7,665.28,0.3006253]
[1748972810777,2.2380103,665.71,665.37,0.47851114]
[1748972810976,2.2380103,665.72,665.38,0.47851114]
[1748972811179,2.2380103,665.71,665.38,0.47851114]
[1748972812081,2.2380103,665.7,665.37,0.47851114]
[1748972812381,3.73766948,666.31,665.28,0.3006253]
[1748972812382,2.2380103,665.69,665.41,0.47851114]
[1748972812584,2.2380103,665.68,665.41,0.47851114]
[1748972812783,2.2380103,665.68,665.4,0.47851114]
[1748972813081,2.2380103,665.68,665.41,0.47851114]
[1748972813483,2.2380103,665.68,665.42,0.47851114]
[1748972813983,2.2380103,665.68,665.28,0.3006253]
[1748972813984,2.2380103,665.7,665.43,0.47851114]
[1748972814182,2.2380103,665.71,665.43,0.47851114]
[1748972814581,3.73766948,666.29,665.43,0.47851114]
[1748972814582,2.2380103,665.7,665.43,0.47851114]
[1748972814777,2.2380103,665.71,665.44,0.47851114]
[1748972815377,2.2380103,665.72,665.43,0.47851114]
[1748972815582,2.2380103,665.71,665.42,0.47851114]
[1748972816486,2.2380103,665.7,665.42,0.47851114]
[1748972816679,2.2380103,665.7,665.41,0.47851114]
[1748972816883,2.2380103,665.7,665.28,0.3006253]
[1748972816884,2.2380103,665.63,665.57,0.47851114]
[1748972817384,2.2380103,665.62,665.57,0.47851114]
[1748972817578,5.23273727,666.37,665.57,0.47851114]
[1748972817579,2.2380103,665.61,665.57,0.47851114]
[1748972818187,3.73766948,666.11,665.41,0.47851114]
[1748972818188,2.2380103,665.69,665.41,0.47851114]
[1748972818383,1.49943169,665.54,665.41,0.47851114]
[1748972818583,1.49943169,665.53,665.41,0.47851114]
[1748972819687,1.49943169,665.52,665.41,0.47851114]
[1748972821890,1.49943169,665.51,665.4,0.47851114]
[1748972822591,1.49943169,665.5,665.4,0.47851114]
[1748972823690,3.73766948,666.24,665.44,0.47851114]
[1748972823691,1.49943169,665.49,665.44,0.47851114]
[1748972824088,1.49943169,665.49,665.43,0.47851114]
[1748972824289,1.49943169,665.49,665.28,0.3006253]
[1748972824290,1.49943169,665.49,665.42,0.47851114]
[1748972825293,1.49943169,665.49,665.43,0.47851114]
[1748972825984,1.49943169,665.49,665.44,0.47851114]
[1748972826288,1.49943169,665.49,665.28,0.3006253]
[1748972826289,1.49943169,665.49,665.43,0.47851114]
[1748972827788,1.49943169,665.48,665.43,0.47851114]
[1748972827989,1.49943169,665.48,665.28,0.77687661]
[1748972828189,1.50099736,665.42,665.28,0.77687661]
[1748972828389,1.50099736,665.5,665.41,0.47813767]
[1748972828793,1.50099736,665.51,665.41,0.47813767]
[1748972829794,1.50099736,665.51,665.42,0.47813767]
[1748972830694,1.50099736,665.51,665.41,0.47813767]
[1748972832097,1.50099736,665.5,665.41,0.47813767]
[1748972833796,1.50099736,665.5,665.4,0.47813767]
[1748972833995,1.50099736,665.5,665.41,0.47813767]
[1748972835598,1.50099736,665.51,665.42,0.47813767]
[1748972835799,1.50099736,665.5,665.41,0.47813767]
[1748972836200,1.50099736,665.51,665.4,0.47813767]
[1748972838304,1.50099736,665.46,665.28,0.3006253]
[1748972838703,1.50099736,665.51,665.4,0.47810325]
[1748972839303,1.50099736,665.51,665.28,0.3006253]
[1748972839304,1.50099736,665.52,665.37,0.47810325]
[1748972839798,1.50099736,665.52,665.36,0.47810325]
[1748972840204,1.50099736,665.52,665.37,0.47810325]
[1748972841305,1.50099736,665.54,665.33,0.47810325]
[1748972841506,2.2380103,665.69,665.34,0.47810325]
[1748972841507,1.50099736,665.53,665.34,0.47810325]
[1748972841709,1.50099736,665.53,665.32,0.47810325]
[1748972841907,1.50099736,665.54,665.32,0.47810325]
[1748972842310,1.50099736,665.55,665.32,0.47810325]
[1748972842705,1.50099736,665.54,665.33,0.47810325]
[1748972842906,1.50099736,665.54,665.32,0.47810325]
[1748972843608,1.50099736,665.54,665.33,0.47810325]
[1748972844609,1.50099736,665.54,665.34,0.47810325]
[1748972845411,1.50099736,665.55,665.34,0.47810325]
[1748972845711,1.50099736,665.56,665.41,0.47810325]
[1748972845912,1.50099736,665.59,665.41,0.47810325]
[1748972846113,1.50099736,665.59,665.42,0.47810325]
[1748972846306,1.50099736,665.59,665.34,0.30059819]
[1748972846307,1.50099736,665.59,665.41,0.47810325]
[1748972846710,3.73766948,666.37,665.42,0.47810325]
[1748972846711,1.50099736,665.6,665.42,0.47810325]
[1748972847313,1.50099736,665.6,665.41,0.30056656]
[1748972848213,1.50099736,665.61,665.41,0.30056656]
[1748972848611,1.50099736,665.58,665.46,0.47810325]
[1748972849008,1.50099736,665.58,665.41,0.30056656]
[1748972849009,1.50099736,665.58,665.47,0.47810325]
[1748972849311,5.23273727,666.61,665.41,0.30056656]
[1748972849312,1.50099736,665.64,665.45,0.47810325]
[1748972850111,1.50099736,665.64,665.44,0.47810325]
[1748972850309,1.50099736,665.65,665.44,0.47810325]
[1748972850914,1.499637,665.64,665.44,0.47810325]
[1748972851116,1.499637,665.64,665.43,0.47810325]
[1748972851319,1.499637,665.64,665.41,0.30056656]
[1748972851320,1.499637,665.63,665.45,0.47810325]
[1748972851617,1.499637,665.57,665.41,0.77866981]
[1748972851814,1.499637,665.55,665.41,0.30056656]
[1748972852520,7.47533897,667.08,665.41,0.30056656]
[1748972852521,1.499637,665.54,665.41,0.30056656]
[1748972853317,3.73766948,666.28,665.44,0.47810325]
[1748972853318,1.499637,665.52,665.44,0.47810325]
[1748972853513,2.2380103,665.65,665.41,0.30056656]
[1748972853514,1.499637,665.49,665.41,0.77866981]
[1748972854622,1.499637,665.49,665.41,0.30056656]
[1748972854921,1.499637,665.5,665.41,0.30056656]
[1748972858723,1.499637,665.48,665.43,0.47810325]
[1748972859120,1.499637,665.48,665.41,0.30056656]
[1748972859121,1.499637,665.48,665.45,0.47810325]
[1748972859321,1.499637,665.47,665.45,0.47810325]
[1748972859517,1.499637,665.52,665.41,0.30056656]
[1748972859918,5.23273727,666.57,665.41,0.30056656]
[1748972859919,1.499637,665.5,665.41,0.30056656]
[1748972860222,1.499637,665.53,665.41,0.30056656]
[1748972861823,1.499637,665.54,665.41,0.30056656]
[1748972863024,1.499637,665.53,665.41,0.30056656]
[1748972864318,1.499637,665.54,665.41,0.30056656]
[1748972869422,1.499637,665.51,665.41,0.30056656]
[1748972869624,1.499637,665.54,665.41,0.30056656]
[1748972870028,1.499637,665.52,665.41,0.30056656]
[1748972870728,1.499637,665.54,665.41,0.30056656]
[1748972871828,1.499637,665.53,665.41,0.30056656]
[1748972873528,1.499637,665.54,665.41,0.30056656]
[1748972873727,1.499637,665.53,665.41,0.30056656]
[1748972874129,1.499637,665.52,665.41,0.30056656]
[1748972876330,1.499637,665.51,665.41,0.30056656]
[1748972879631,1.499637,665.48,665.41,0.30056656]
[1748972879829,3.73766948,666.17,665.41,0.30056656]
[1748972879830,1.499637,665.52,665.41,0.30056656]
[1748972880036,1.499637,665.61,665.41,0.30056656]
[1748972880335,1.499637,665.62,665.41,0.30056656]
[1748972880536,1.499637,665.61,665.41,0.30056656]
[1748972881135,1.499637,665.62,665.41,0.30056656]
[1748972881637,1.499637,665.61,665.41,0.30056656]
[1748972882335,1.499637,665.62,665.41,0.30056656]
[1748972885234,2.2380103,665.77,665.41,0.30056656]
[1748972885235,1.499637,665.61,665.41,0.30056656]
[1748972886338,1.499637,665.62,665.41,0.30056656]
[1748972889833,1.499637,665.59,665.44,0.47810325]
[1748972890034,1.499637,665.53,665.41,0.30056656]
[1748972893135,1.499637,665.54,665.41,0.30056656]
[1748972893735,1.499637,665.55,665.41,0.30056656]
[1748972897549,1.499637,665.54,665.41,0.30056656]
[1748972899342,1.499637,665.58,665.5,0.47732081]
[1748972899541,1.499637,665.58,665.41,0.30056656]
[1748972899542,1.499637,665.58,665.49,0.47732081]
[1748972900241,1.499637,665.59,665.5,0.47732081]
[1748972900547,1.499637,665.58,665.49,0.47732081]
[1748972901247,1.499637,665.58,665.5,0.47732081]
[1748972901447,1.499637,665.58,665.49,0.47732081]
[1748972902249,2.2380103,665.72,665.41,0.30056656]
[1748972902250,1.499637,665.59,665.5,0.47732081]
[1748972903051,1.499637,665.59,665.41,0.30056656]
[1748972903052,1.499637,665.58,665.51,0.47732081]
[1748972903350,1.499637,665.57,665.55,0.47732081]
[1748972904149,1.499637,665.56,665.41,0.30056656]
[1748972904453,1.499637,665.58,665.52,0.4774004]
[1748972904953,1.499637,665.59,665.49,0.4774004]
[1748972905250,1.499637,665.59,665.5,0.4774004]